fUST/lending_fUST_20260509
["ID","MTS","AMOUNT","RATE_DAILY","PERIOD"]
[421906451,1778321439000,-1880.07,0.00010958,2]
[421906448,1778321439000,-500.0,0.00010958,2]
[421906450,1778321439000,-1112.66,0.00010958,2]
[421906453,1778321439000,-512.93,0.00010958,2]
[421906418,1778321439000,-500.0,0.00010958,2]
[421906423,1778321439000,-500.0,0.00010958,2]
[421906442,1778321439000,-500.0,0.00010958,2]
[421906422,1778321439000,-1402.48,0.00010958,2]
[421906398,1778321439000,-500.0,0.00010958,2]
[421906392,1778321439000,-500.0,0.00010958,2]
[421906420,1778321439000,-516.77,0.00010958,2]
[421906388,1778321439000,-500.0,0.00010958,2]
[421906391,1778321439000,-500.0,0.00010958,2]
[421906395,1778321439000,-500.0,0.00010958,2]
[421906394,1778321439000,-500.0,0.00010958,2]
[421906397,1778321439000,-500.0,0.00010958,2]
[421906393,1778321439000,-500.0,0.00010958,2]
[421906396,1778321439000,-500.0,0.00010958,2]
[421906401,1778321439000,-500.0,0.00010958,2]
[421906411,1778321439000,-553.87877266,0.00010958,2]
[421906412,1778321439000,-549.23,0.00010958,2]
[421906404,1778321439000,-500.0,0.00010958,2]
[421906399,1778321439000,-500.0,0.00010958,2]
[421906407,1778321439000,-554.86,0.00010958,2]
[421906413,1778321439000,-602.96,0.00010958,2]
[421906417,1778321439000,-500.0,0.00010958,2]
[421906414,1778321439000,-500.0,0.00010958,2]
[421906426,1778321439000,-500.0,0.00010958,2]
[421906415,1778321439000,-500.0,0.00010958,2]
[421906409,1778321439000,-500.0,0.00010958,2]
[421906416,1778321439000,-500.0,0.00010958,2]
[421906402,1778321439000,-821.1,0.00010958,2]
[421906408,1778321439000,-576.09231449,0.00010958,2]
[421906406,1778321439000,-887.55,0.00010958,2]
[421906405,1778321439000,-500.0,0.00010958,2]
[421906403,1778321439000,-500.0,0.00010958,2]
[421906400,1778321439000,-500.0,0.00010958,2]
[421906410,1778321439000,-595.52,0.00010958,2]
[421906468,1778321440000,-500.0,0.00010958,2]
[421906472,1778321440000,-500.0,0.00010958,2]
[421906471,1778321440000,-500.0,0.00010958,2]
[421906473,1778321440000,-683.02,0.00010958,2]
[421906474,1778321440000,-600.75,0.00010958,2]
[421906477,1778321440000,-1055.72,0.00010958,2]
[421906475,1778321440000,-500.0,0.00010958,2]
[421906479,1778321440000,-743.93,0.00010958,2]
[421906470,1778321440000,-500.0,0.00010958,2]
[421906487,1778321440000,-442.24853417,0.00010958,2]
[421906469,1778321440000,-500.0,0.00010958,2]
[421906465,1778321440000,-500.0,0.00010958,2]
[421906463,1778321440000,-500.0,0.00010958,2]
[421906462,1778321440000,-500.0,0.00010958,2]
[421906464,1778321440000,-500.0,0.00010958,2]
[421906458,1778321440000,-500.0,0.00010958,2]
[421906466,1778321440000,-500.0,0.00010958,2]
[421906457,1778321440000,-500.0,0.00010958,2]
[421906461,1778321440000,-500.0,0.00010958,2]
[421906459,1778321440000,-723.05,0.00010958,2]
[421906467,1778321440000,-500.0,0.00010958,2]
[421906456,1778321440000,-621.36,0.00010958,2]
[421906455,1778321440000,-500.0,0.00010958,2]
[421906460,1778321440000,-500.0,0.00010958,2]
[421906478,1778321440000,-500.0,0.00010958,2]
[421906476,1778321440000,-1241.37,0.00010958,2]
[421906480,1778321440000,-500.0,0.00010958,2]
[421906486,1778321440000,-500.0,0.00010958,2]
[421906506,1778321440000,-78.03188177,0.00011176,2]
[421906504,1778321440000,-300.0,0.00011176,2]
[421906502,1778321440000,-300.0,0.00011176,2]
[421906503,1778321440000,-300.0,0.00011176,2]
[421906501,1778321440000,-300.0,0.00011176,2]
[421906499,1778321440000,-215.30567644,0.00011176,2]
[421906498,1778321440000,-126.13838698,0.00011176,2]
[421906500,1778321440000,-84.69432356,0.00011176,2]
[421906496,1778321440000,-300.0,0.00011176,2]
[421906495,1778321440000,-300.0,0.00011176,2]
[421906497,1778321440000,-173.86161302,0.00011176,2]
[421906505,1778321440000,-300.0,0.00011176,2]
[421906494,1778321440000,-621.78829552,0.00011171,2]
[421906492,1778321440000,-5619.15973091,0.00011137,2]
[421906481,1778321440000,-1408.46,0.00010958,2]
[421906483,1778321440000,-299.82268912,0.00010958,2]
[421906485,1778321440000,-48.47850205,0.00010958,2]
[421906482,1778321440000,-500.0,0.00010958,2]
[421906484,1778321440000,-451.52149795,0.00010958,2]
[421906488,1778321440000,-103.36146583,0.00010958,2]
[421906490,1778321440000,-578.20924308,0.00011061,2]
[421906491,1778321440000,-599.60298507,0.00011116,2]
[421906493,1778321440000,-847.43756892,0.00011137,2]
[421906489,1778321440000,-557.5788265,0.00011006,2]
[421906620,1778321449000,-189.89,0.00011232,2]
[421906637,1778321449000,-855.46,0.00011232,2]
[421906623,1778321449000,-500.0,0.00011232,2]
[421906622,1778321449000,-500.0,0.00011232,2]
[421906619,1778321449000,-429.6,0.00011232,2]
[421906621,1778321449000,-385.32,0.00011232,2]
[421906626,1778321449000,-500.0,0.00011232,2]
[421906636,1778321449000,-500.0,0.00011232,2]
[421906638,1778321449000,-352.21,0.00011232,2]
[421906630,1778321449000,-500.0,0.00011232,2]
[421906627,1778321449000,-500.0,0.00011232,2]
[421906633,1778321449000,-500.0,0.00011232,2]
[421906631,1778321449000,-500.0,0.00011232,2]
[421906632,1778321449000,-410.07,0.00011232,2]
[421906628,1778321449000,-304.31,0.00011232,2]
[421906634,1778321449000,-284.65,0.00011232,2]
[421906635,1778321449000,-500.0,0.00011232,2]
[421906616,1778321449000,-500.0,0.00011232,2]
[421906625,1778321449000,-206.71,0.00011232,2]
[421906618,1778321449000,-246.7,0.00011232,2]
[421906604,1778321449000,-600.0,0.00011176,2]
[421906614,1778321449000,-388.32,0.00011232,2]
[421906596,1778321449000,-500.0,0.00010958,2]
[421906600,1778321449000,-300.0,0.00011176,2]
[421906598,1778321449000,-221.96811823,0.00011176,2]
[421906597,1778321449000,-2231.09,0.00010958,2]
[421906599,1778321449000,-300.0,0.00011176,2]
[421906603,1778321449000,-300.0,0.00011176,2]
[421906601,1778321449000,-300.0,0.00011176,2]
[421906602,1778321449000,-300.0,0.00011176,2]
[421906640,1778321449000,-231.61,0.00011232,2]
[421906605,1778321449000,-160.0,0.00011186,2]
[421906606,1778321449000,-644.79446246,0.00011226,2]
[421906612,1778321449000,-500.0,0.00011232,2]
[421906607,1778321449000,-1305.7807,0.00011232,2]
[421906611,1778321449000,-500.0,0.00011232,2]
[421906609,1778321449000,-500.0,0.00011232,2]
[421906613,1778321449000,-448.84,0.00011232,2]
[421906610,1778321449000,-500.0,0.00011232,2]
[421906608,1778321449000,-500.0,0.00011232,2]
[421906615,1778321449000,-841.78,0.00011232,2]
[421906617,1778321449000,-283.9,0.00011232,2]
[421906650,1778321449000,-500.0,0.00011232,2]
[421906624,1778321449000,-706.15,0.00011232,2]
[421906652,1778321449000,-500.0,0.00011232,2]
[421906666,1778321449000,-1139.58,0.00011232,2]
[421906667,1778321449000,-500.0,0.00011232,2]
[421906669,1778321449000,-500.0,0.00011232,2]
[421906668,1778321449000,-500.0,0.00011232,2]
[421906681,1778321449000,-500.0,0.00011232,2]
[421906671,1778321449000,-896.78,0.00011232,2]
[421906670,1778321449000,-500.0,0.00011232,2]
[421906672,1778321449000,-9844.3,0.00011232,2]
[421906673,1778321449000,-1112.66,0.00011232,2]
[421906664,1778321449000,-500.0,0.00011232,2]
[421906675,1778321449000,-500.0,0.00011232,2]
[421906679,1778321449000,-500.0,0.00011232,2]
[421906677,1778321449000,-500.0,0.00011232,2]
[421906678,1778321449000,-723.05,0.00011232,2]
[421906680,1778321449000,-500.0,0.00011232,2]
[421906683,1778321449000,-553.91,0.00011232,2]
[421906684,1778321449000,-500.0,0.00011232,2]
[421906682,1778321449000,-500.0,0.00011232,2]
[421906685,1778321449000,-500.0,0.00011232,2]
[421906641,1778321449000,-826.97,0.00011232,2]
[421906676,1778321449000,-500.0,0.00011232,2]
[421906665,1778321449000,-1852.28,0.00011232,2]
[421906674,1778321449000,-1880.07,0.00011232,2]
[421906662,1778321449000,-500.0,0.00011232,2]
[421906639,1778321449000,-500.0,0.00011232,2]
[421906658,1778321449000,-500.0,0.00011232,2]
[421906642,1778321449000,-500.0,0.00011232,2]
[421906645,1778321449000,-500.0,0.00011232,2]
[421906648,1778321449000,-500.0,0.00011232,2]
[421906647,1778321449000,-1694.75,0.00011232,2]
[421906651,1778321449000,-500.0,0.00011232,2]
[421906643,1778321449000,-500.0,0.00011232,2]
[421906646,1778321449000,-813.64,0.00011232,2]
[421906644,1778321449000,-500.0,0.00011232,2]
[421906649,1778321449000,-500.0,0.00011232,2]
[421906655,1778321449000,-887.55,0.00011232,2]
[421906657,1778321449000,-166.0,0.00011232,2]
[421906663,1778321449000,-500.0,0.00011232,2]
[421906659,1778321449000,-516.77,0.00011232,2]
[421906654,1778321449000,-500.0,0.00011232,2]
[421906661,1778321449000,-500.0,0.00011232,2]
[421906653,1778321449000,-821.1,0.00011232,2]
[421906656,1778321449000,-500.0,0.00011232,2]
[421906660,1778321449000,-1402.48,0.00011232,2]
[421906721,1778321450000,-500.0,0.00011506,2]
[421906730,1778321450000,-1694.75,0.00011506,2]
[421906731,1778321450000,-500.0,0.00011506,2]
[421906725,1778321450000,-500.0,0.00011506,2]
[421906723,1778321450000,-500.0,0.00011506,2]
[421906724,1778321450000,-826.97,0.00011506,2]
[421906729,1778321450000,-813.64,0.00011506,2]
[421906722,1778321450000,-855.46,0.00011506,2]
[421906720,1778321450000,-500.0,0.00011506,2]
[421906719,1778321450000,-500.0,0.00011506,2]
[421906727,1778321450000,-500.0,0.00011506,2]
[421906728,1778321450000,-500.0,0.00011506,2]
[421906726,1778321450000,-500.0,0.00011506,2]
[421906738,1778321450000,-887.55,0.00011506,2]
[421906733,1778321450000,-500.0,0.00011506,2]
[421906734,1778321450000,-500.0,0.00011506,2]
[421906737,1778321450000,-500.0,0.00011506,2]
[421906736,1778321450000,-821.1,0.00011506,2]
[421906735,1778321450000,-500.0,0.00011506,2]
[421906742,1778321450000,-1402.48,0.00011506,2]
[421906741,1778321450000,-516.77,0.00011506,2]
[421906739,1778321450000,-500.0,0.00011506,2]
[421906740,1778321450000,-500.0,0.00011506,2]
[421906744,1778321450000,-578.63622295,0.00011506,2]
[421906743,1778321450000,-500.0,0.00011506,2]
[421906715,1778321450000,-500.0,0.00011506,2]
[421906754,1778321450000,-9844.3,0.00011506,2]
[421906732,1778321450000,-500.0,0.00011506,2]
[421906717,1778321450000,-500.0,0.00011506,2]
[421906692,1778321450000,-743.93,0.00011232,2]
[421906711,1778321450000,-841.78,0.00011506,2]
[421906745,1778321450000,-500.0,0.00011506,2]
[421906693,1778321450000,-500.0,0.00011232,2]
[421906694,1778321450000,-1408.46,0.00011232,2]
[421906686,1778321450000,-683.02,0.00011232,2]
[421906691,1778321450000,-500.0,0.00011232,2]
[421906690,1778321450000,-1055.72,0.00011232,2]
[421906687,1778321450000,-600.75,0.00011232,2]
[421906688,1778321450000,-500.0,0.00011232,2]
[421906689,1778321450000,-1241.37,0.00011232,2]
[421906696,1778321450000,-500.0,0.00011232,2]
[421906706,1778321450000,-500.0,0.00011506,2]
[421906695,1778321450000,-545.61,0.00011232,2]
[421906697,1778321450000,-35384.66531306,0.00011232,2]
[421906716,1778321450000,-500.0,0.00011506,2]
[421906698,1778321450000,-668.65185757,0.00011281,2]
[421906699,1778321450000,-693.3919763,0.00011336,2]
[421906700,1778321450000,-719.04747942,0.00011391,2]
[421906701,1778321450000,-745.65223616,0.00011446,2]
[421906703,1778321450000,-557.5788265,0.00011499,2]
[421906705,1778321450000,-1305.7807,0.00011506,2]
[421906704,1778321450000,-773.2413689,0.00011501,2]
[421906707,1778321450000,-500.0,0.00011506,2]
[421906710,1778321450000,-500.0,0.00011506,2]
[421906709,1778321450000,-500.0,0.00011506,2]
[421906708,1778321450000,-500.0,0.00011506,2]
[421906718,1778321450000,-500.0,0.00011506,2]
[421906712,1778321450000,-500.0,0.00011506,2]
[421906713,1778321450000,-500.0,0.00011506,2]
[421906702,1778321450000,-461.67526834,0.00011499,2]
[421906747,1778321450000,-1852.28,0.00011506,2]
[421906714,1778321450000,-706.15,0.00011506,2]
[421906746,1778321450000,-500.0,0.00011506,2]
[421906783,1778321450000,-341.0,0.00011665,2]
[421906784,1778321450000,-341.0,0.00011665,2]
[421906782,1778321450000,-341.0,0.00011665,2]
[421906785,1778321450000,-341.0,0.00011665,2]
[421906790,1778321450000,-163.62,0.00011726,2]
[421906786,1778321450000,-166.0,0.00011665,2]
[421906788,1778321450000,-862.28603014,0.00011666,2]
[421906787,1778321450000,-164.0,0.00011665,2]
[421906792,1778321450000,-341.0,0.00011748,2]
[421906793,1778321450000,-650.0,0.00011748,2]
[421906791,1778321450000,-650.0,0.00011748,2]
[421906794,1778321450000,-650.0,0.00011748,2]
[421906806,1778321450000,-706.15,0.0001178,2]
[421906778,1778321450000,-801.85129955,0.00011556,2]
[421906807,1778321450000,-500.0,0.0001178,2]
[421906795,1778321450000,-622.0,0.00011748,2]
[421906799,1778321450000,-500.0,0.0001178,2]
[421906798,1778321450000,-1305.7807,0.0001178,2]
[421906797,1778321450000,-927.27566595,0.00011776,2]
[421906800,1778321450000,-500.0,0.0001178,2]
[421906804,1778321450000,-500.0,0.0001178,2]
[421906801,1778321450000,-500.0,0.0001178,2]
[421906805,1778321450000,-500.0,0.0001178,2]
[421906803,1778321450000,-841.78,0.0001178,2]
[421906802,1778321450000,-500.0,0.0001178,2]
[421906809,1778321450000,-500.0,0.0001178,2]
[421906808,1778321450000,-500.0,0.0001178,2]
[421906755,1778321450000,-1112.66,0.00011506,2]
[421906796,1778321450000,-650.0,0.00011748,2]
[421906810,1778321450000,-500.0,0.0001178,2]
[421906789,1778321450000,-894.19061326,0.00011721,2]
[421906779,1778321450000,-831.51979763,0.00011611,2]
[421906750,1778321450000,-500.0,0.00011506,2]
[421906777,1778321450000,-6962.35441311,0.00011516,2]
[421906753,1778321450000,-896.78,0.00011506,2]
[421906749,1778321450000,-1139.58,0.00011506,2]
[421906748,1778321450000,-500.0,0.00011506,2]
[421906751,1778321450000,-500.0,0.00011506,2]
[421906752,1778321450000,-500.0,0.00011506,2]
[421906756,1778321450000,-1880.07,0.00011506,2]
[421906757,1778321450000,-500.0,0.00011506,2]
[421906767,1778321450000,-600.75,0.00011506,2]
[421906758,1778321450000,-500.0,0.00011506,2]
[421906763,1778321450000,-500.0,0.00011506,2]
[421906761,1778321450000,-500.0,0.00011506,2]
[421906759,1778321450000,-723.05,0.00011506,2]
[421906760,1778321450000,-500.0,0.00011506,2]
[421906768,1778321450000,-500.0,0.00011506,2]
[421906773,1778321450000,-500.0,0.00011506,2]
[421906775,1778321450000,-545.61,0.00011506,2]
[421906766,1778321450000,-683.02,0.00011506,2]
[421906774,1778321450000,-1408.46,0.00011506,2]
[421906776,1778321450000,-500.0,0.00011506,2]
[421906769,1778321450000,-1241.37,0.00011506,2]
[421906781,1778321450000,-341.0,0.00011665,2]
[421906772,1778321450000,-743.93,0.00011506,2]
[421906780,1778321450000,-163.1,0.00011664,2]
[421906770,1778321450000,-1055.72,0.00011506,2]
[421906764,1778321450000,-500.0,0.00011506,2]
[421906765,1778321450000,-500.0,0.00011506,2]
[421906762,1778321450000,-500.0,0.00011506,2]
[421906771,1778321450000,-500.0,0.00011506,2]
[421906851,1778321451000,-500.0,0.0001178,2]
[421906856,1778321451000,-500.0,0.0001178,2]
[421906854,1778321451000,-500.0,0.0001178,2]
[421906849,1778321451000,-500.0,0.0001178,2]
[421906859,1778321451000,-500.0,0.0001178,2]
[421906852,1778321451000,-500.0,0.0001178,2]
[421906841,1778321451000,-158.47,0.0001178,2]
[421906848,1778321451000,-500.0,0.0001178,2]
[421906850,1778321451000,-723.05,0.0001178,2]
[421906843,1778321451000,-500.0,0.0001178,2]
[421906844,1778321451000,-896.78,0.0001178,2]
[421906853,1778321451000,-500.0,0.0001178,2]
[421906860,1778321451000,-1241.37,0.0001178,2]
[421906855,1778321451000,-500.0,0.0001178,2]
[421906871,1778321451000,-420.0,0.00011854,2]
[421906858,1778321451000,-600.75,0.0001178,2]
[421906862,1778321451000,-500.0,0.0001178,2]
[421906872,1778321451000,-997.16350561,0.00011886,2]
[421906873,1778321451000,-7458.11152638,0.00011895,2]
[421906866,1778321451000,-545.61,0.0001178,2]
[421906865,1778321451000,-1408.46,0.0001178,2]
[421906869,1778321451000,-961.58486559,0.00011831,2]
[421906863,1778321451000,-743.93,0.0001178,2]
[421906864,1778321451000,-500.0,0.0001178,2]
[421906870,1778321451000,-166.92,0.00011851,2]
[421906861,1778321451000,-1055.72,0.0001178,2]
[421906867,1778321451000,-500.0,0.0001178,2]
[421906842,1778321451000,-500.0,0.0001178,2]
[421906857,1778321451000,-683.02,0.0001178,2]
[421906840,1778321451000,-500.0,0.0001178,2]
[421906819,1778321451000,-500.0,0.0001178,2]
[421906836,1778321451000,-500.0,0.0001178,2]
[421906811,1778321451000,-500.0,0.0001178,2]
[421906868,1778321451000,-1002.38,0.000118,2]
[421906820,1778321451000,-415.18825144,0.0001178,2]
[421906812,1778321451000,-500.0,0.0001178,2]
[421906815,1778321451000,-500.0,0.0001178,2]
[421906816,1778321451000,-826.97,0.0001178,2]
[421906818,1778321451000,-500.0,0.0001178,2]
[421906813,1778321451000,-500.0,0.0001178,2]
[421906817,1778321451000,-500.0,0.0001178,2]
[421906814,1778321451000,-855.46,0.0001178,2]
[421906821,1778321451000,-813.64,0.0001178,2]
[421906832,1778321451000,-150.26,0.0001178,2]
[421906824,1778321451000,-506.02,0.0001178,2]
[421906823,1778321451000,-500.0,0.0001178,2]
[421906847,1778321451000,-1880.07,0.0001178,2]
[421906822,1778321451000,-1694.75,0.0001178,2]
[421906830,1778321451000,-887.55,0.0001178,2]
[421906827,1778321451000,-500.0,0.0001178,2]
[421906828,1778321451000,-821.1,0.0001178,2]
[421906826,1778321451000,-500.0,0.0001178,2]
[421906825,1778321451000,-500.0,0.0001178,2]
[421906829,1778321451000,-500.0,0.0001178,2]
[421906833,1778321451000,-516.77,0.0001178,2]
[421906834,1778321451000,-1402.48,0.0001178,2]
[421906835,1778321451000,-500.0,0.0001178,2]
[421906845,1778321451000,-9844.3,0.0001178,2]
[421906846,1778321451000,-1112.66,0.0001178,2]
[421906838,1778321451000,-1852.28,0.0001178,2]
[421906839,1778321451000,-1139.58,0.0001178,2]
[421906837,1778321451000,-500.0,0.0001178,2]
[421906831,1778321451000,-500.0,0.0001178,2]
[421906875,1778321451000,-500.0,0.00012,2]
[421906878,1778321451000,-166.0,0.00012011,2]
[421906886,1778321451000,-273.75977703,0.00012011,2]
[421906910,1778321451000,-650.0,0.00012011,2]
[421906905,1778321451000,-650.0,0.00012011,2]
[421906907,1778321451000,-650.0,0.00012011,2]
[421906914,1778321451000,-650.0,0.00012011,2]
[421906915,1778321451000,-167.0,0.00012011,2]
[421906926,1778321451000,-500.0,0.00012054,2]
[421906916,1778321451000,-265.49896589,0.00012011,2]
[421906925,1778321451000,-500.0,0.00012054,2]
[421906917,1778321451000,-168.89,0.00012022,2]
[421906919,1778321451000,-260.87624143,0.00012047,2]
[421906918,1778321451000,-168.89,0.00012022,2]
[421906920,1778321451000,-578.20924308,0.00012047,2]
[421906922,1778321451000,-155.0,0.00012053,2]
[421906923,1778321451000,-1305.7807,0.00012054,2]
[421906921,1778321451000,-155.0,0.00012053,2]
[421906924,1778321451000,-500.0,0.00012054,2]
[421906928,1778321451000,-841.78,0.00012054,2]
[421906927,1778321451000,-500.0,0.00012054,2]
[421906936,1778321451000,-500.0,0.00012054,2]
[421906931,1778321451000,-706.15,0.00012054,2]
[421906929,1778321451000,-500.0,0.00012054,2]
[421906930,1778321451000,-500.0,0.00012054,2]
[421906885,1778321451000,-156.0,0.00012011,2]
[421906933,1778321451000,-500.0,0.00012054,2]
[421906934,1778321451000,-500.0,0.00012054,2]
[421906935,1778321451000,-500.0,0.00012054,2]
[421906937,1778321451000,-500.0,0.00012054,2]
[421906938,1778321451000,-500.0,0.00012054,2]
[421906939,1778321451000,-855.46,0.00012054,2]
[421906909,1778321451000,-650.0,0.00012011,2]
[421906906,1778321451000,-650.0,0.00012011,2]
[421906932,1778321451000,-484.63388447,0.00012054,2]
[421906904,1778321451000,-650.0,0.00012011,2]
[421906908,1778321451000,-650.0,0.00012011,2]
[421906874,1778321451000,-161.2491,0.00011917,2]
[421906884,1778321451000,-156.0,0.00012011,2]
[421906877,1778321451000,-166.0,0.00012011,2]
[421906880,1778321451000,-166.0,0.00012011,2]
[421906876,1778321451000,-154.0,0.00012011,2]
[421906882,1778321451000,-172.0,0.00012011,2]
[421906883,1778321451000,-156.0,0.00012011,2]
[421906881,1778321451000,-166.0,0.00012011,2]
[421906887,1778321451000,-156.0,0.00012011,2]
[421906890,1778321451000,-194.7205042,0.00012011,2]
[421906888,1778321451000,-156.0,0.00012011,2]
[421906899,1778321451000,-650.0,0.00012011,2]
[421906889,1778321451000,-156.0,0.00012011,2]
[421906879,1778321451000,-166.0,0.00012011,2]
[421906891,1778321451000,-650.0,0.00012011,2]
[421906898,1778321451000,-650.0,0.00012011,2]
[421906903,1778321451000,-650.0,0.00012011,2]
[421906902,1778321451000,-650.0,0.00012011,2]
[421906913,1778321451000,-650.0,0.00012011,2]
[421906911,1778321451000,-650.0,0.00012011,2]
[421906912,1778321451000,-650.0,0.00012011,2]
[421906900,1778321451000,-650.0,0.00012011,2]
[421906895,1778321451000,-650.0,0.00012011,2]
[421906893,1778321451000,-650.0,0.00012011,2]
[421906897,1778321451000,-650.0,0.00012011,2]
[421906894,1778321451000,-650.0,0.00012011,2]
[421906896,1778321451000,-650.0,0.00012011,2]
[421906901,1778321451000,-650.0,0.00012011,2]
[421906892,1778321451000,-650.0,0.00012011,2]
[421906985,1778321452000,-500.0,0.00012054,2]
[421906975,1778321452000,-500.0,0.00012054,2]
[421906967,1778321452000,-1112.66,0.00012054,2]
[421906968,1778321452000,-1880.07,0.00012054,2]
[421906972,1778321452000,-500.0,0.00012054,2]
[421906970,1778321452000,-500.0,0.00012054,2]
[421906969,1778321452000,-229.6661765,0.00012054,2]
[421906973,1778321452000,-500.0,0.00012054,2]
[421906964,1778321452000,-500.0,0.00012054,2]
[421906971,1778321452000,-723.05,0.00012054,2]
[421906986,1778321452000,-1408.46,0.00012054,2]
[421906979,1778321452000,-600.75,0.00012054,2]
[421906977,1778321452000,-500.0,0.00012054,2]
[421906976,1778321452000,-500.0,0.00012054,2]
[421906978,1778321452000,-683.02,0.00012054,2]
[421906980,1778321452000,-500.0,0.00012054,2]
[421906981,1778321452000,-1241.37,0.00012054,2]
[421906984,1778321452000,-743.93,0.00012054,2]
[421906983,1778321452000,-500.0,0.00012054,2]
[421906982,1778321452000,-1055.72,0.00012054,2]
[421906998,1778321452000,-500.0,0.00012328,2]
[421906965,1778321452000,-896.78,0.00012054,2]
[421906974,1778321452000,-500.0,0.00012054,2]
[421906966,1778321452000,-9844.3,0.00012054,2]
[421906948,1778321452000,-500.0,0.00012054,2]
[421906963,1778321452000,-500.0,0.00012054,2]
[421906987,1778321452000,-545.61,0.00012054,2]
[421906942,1778321452000,-500.0,0.00012054,2]
[421906943,1778321452000,-500.0,0.00012054,2]
[421906945,1778321452000,-813.64,0.00012054,2]
[421906941,1778321452000,-826.97,0.00012054,2]
[421906940,1778321452000,-500.0,0.00012054,2]
[421906944,1778321452000,-500.0,0.00012054,2]
[421906946,1778321452000,-1694.75,0.00012054,2]
[421906950,1778321452000,-500.0,0.00012054,2]
[421906949,1778321452000,-500.0,0.00012054,2]
[421906962,1778321452000,-500.0,0.00012054,2]
[421906947,1778321452000,-500.0,0.00012054,2]
[421906952,1778321452000,-500.0,0.00012054,2]
[421906954,1778321452000,-500.0,0.00012054,2]
[421906951,1778321452000,-821.1,0.00012054,2]
[421906957,1778321452000,-500.0,0.00012054,2]
[421906959,1778321452000,-500.0,0.00012054,2]
[421906956,1778321452000,-1402.48,0.00012054,2]
[421906955,1778321452000,-516.77,0.00012054,2]
[421906953,1778321452000,-887.55,0.00012054,2]
[421906960,1778321452000,-1852.28,0.00012054,2]
[421906961,1778321452000,-1139.58,0.00012054,2]
[421906958,1778321452000,-500.0,0.00012054,2]
[421906988,1778321452000,-500.0,0.00012054,2]
[421907034,1778321452000,-500.0,0.00012328,2]
[421906993,1778321452000,-720.0,0.00012294,2]
[421907018,1778321452000,-500.0,0.00012328,2]
[421907019,1778321452000,-500.0,0.00012328,2]
[421907021,1778321452000,-500.0,0.00012328,2]
[421907017,1778321452000,-1694.75,0.00012328,2]
[421907020,1778321452000,-500.0,0.00012328,2]
[421907022,1778321452000,-821.1,0.00012328,2]
[421907025,1778321452000,-500.0,0.00012328,2]
[421907026,1778321452000,-516.77,0.00012328,2]
[421907030,1778321452000,-500.0,0.00012328,2]
[421907028,1778321452000,-500.0,0.00012328,2]
[421907014,1778321452000,-500.0,0.00012328,2]
[421907035,1778321452000,-500.0,0.00012328,2]
[421907027,1778321452000,-1402.48,0.00012328,2]
[421907032,1778321452000,-1139.58,0.00012328,2]
[421907029,1778321452000,-500.0,0.00012328,2]